bitfinex-derivatives/quotes_BTCF0:USTF0_20250509
["timestamp","ask_amount","ask_price","bid_price","bid_amount"]
[1746811197562,0.5697143,103080.0,103070.0,1.5983464]
[1746811198761,0.5697143,103080.0,103070.0,1.59837265]
[1746811199760,0.3757,103080.0,103070.0,1.59837265]
[1746811200356,0.5697143,103080.0,103070.0,1.59837265]
[1746811201556,0.2331,103080.0,103070.0,1.76653125]
[1746811201763,0.4271143,103080.0,103070.0,1.76653125]
[1746811202462,0.4948143,103080.0,103070.0,1.76653125]
[1746811203360,0.4948143,103080.0,103070.0,1.59837265]
[1746811205062,0.4948143,103080.0,103070.0,1.59836755]
[1746811205563,0.4948143,103080.0,103070.0,1.76652615]
[1746811205863,0.4948143,103080.0,103070.0,1.59836755]
[1746811206067,0.5648143,103080.0,103070.0,1.59836755]
[1746811207466,0.2331,103080.0,103070.0,1.76652615]
[1746811207764,0.4271143,103080.0,103070.0,1.76652615]
[1746811207966,0.164,103080.0,103070.0,1.76652615]
[1746811209165,0.3580143,103080.0,103070.0,1.76652615]
[1746811209358,0.4292143,103080.0,103070.0,1.76652615]
[1746811209558,0.5026143,103080.0,103070.0,1.76652615]
[1746811209864,0.4292143,103080.0,103070.0,1.76652615]
[1746811210066,0.4292143,103080.0,103070.0,1.59836755]
[1746811210268,0.4292143,103080.0,103070.0,1.76652615]
[1746811210975,0.4292143,103080.0,103070.0,1.59836755]
[1746811211266,0.4292143,103080.0,103070.0,1.76652615]
[1746811212767,0.4292143,103080.0,103070.0,1.7665311]
[1746811212960,0.5013143,103080.0,103070.0,1.7665311]
[1746811214668,0.4292143,103080.0,103070.0,1.7665311]
[1746811216268,0.4292143,103080.0,103070.0,1.76652945]
[1746811219572,0.4292143,103080.0,103070.0,1.76653592]
[1746811219770,0.5723143,103080.0,103070.0,1.76653592]
[1746811220172,0.5723143,103080.0,103070.0,1.59837732]
[1746811220371,0.5723143,103080.0,103070.0,1.76653592]
[1746811221273,0.5723143,103080.0,103070.0,1.59837732]
[1746811221675,0.5723143,103080.0,103070.0,1.59838218]
[1746811222575,0.5009143,103080.0,103070.0,1.59838218]
[1746811223173,0.4292143,103080.0,103070.0,1.59838218]
[1746811223771,0.2352,103080.0,103070.0,1.59838218]
[1746811224069,0.4292143,103080.0,103070.0,1.70872827]
[1746811226079,0.4292143,103080.0,103070.0,1.59838218]
[1746811226281,0.5705143,103080.0,103070.0,1.59838218]
[1746811226772,0.5705143,103080.0,103070.0,1.70873418]
[1746811227276,0.5705143,103080.0,103070.0,1.59838809]
[1746811230273,0.68086039,103080.0,103070.0,1.45278809]
[1746811230478,0.68086039,103080.0,103070.0,1.35577136]
[1746811230482,0.5705143,103080.0,103070.0,1.35577136]
[1746811231383,0.68086039,103080.0,103070.0,1.35577136]
[1746811231878,0.5705143,103080.0,103070.0,1.35577847]
[1746811232070,0.5705143,103080.0,103070.0,1.43027847]
[1746811232271,0.5705143,103080.0,103070.0,1.49947847]
[1746811232579,0.164,103080.0,103070.0,1.76468091]
[1746811233680,0.164,103080.0,103070.0,1.91104091]
[1746811233872,0.00727,103090.0,103080.0,0.1940143]
[1746811234074,0.00727,103090.0,103080.0,1.3766104]
[1746811234272,0.00727,103090.0,103080.0,1.4736184]
[1746811234483,0.00727,103090.0,103080.0,3.07063513]
[1746811234682,0.00727,103090.0,103080.0,1.40244942]
[1746811234876,0.00727,103090.0,103080.0,1.40244012]
[1746811235076,0.00727,103090.0,103080.0,1.4034404]
[1746811235279,0.00727,103090.0,103080.0,2.90342993]
[1746811235475,0.00727,103090.0,103080.0,2.90343045]
[1746811235670,0.00727,103090.0,103080.0,2.79271674]
[1746811235875,0.00727,103090.0,103080.0,2.97560788]
[1746811236084,0.00727,103090.0,103080.0,2.97560789]
[1746811236279,0.00727,103090.0,103080.0,2.98610143]
[1746811236474,0.00727,103090.0,103080.0,2.98610108]
[1746811236675,0.105,103100.0,103090.0,0.1939955]
[1746811236975,0.105,103100.0,103090.0,1.48496121]
[1746811237186,0.105,103100.0,103090.0,1.57326296]
[1746811237380,0.105,103100.0,103090.0,1.67027028]
[1746811237582,0.2989767,103100.0,103090.0,1.67027028]
[1746811237774,0.105,103100.0,103090.0,1.67027028]
[1746811237969,0.106,103100.0,103090.0,1.67027028]
[1746811238275,0.0002238,103100.0,103090.0,1.67027028]
[1746811238680,0.0002238,103100.0,103090.0,1.67023589]
[1746811239176,0.0002238,103100.0,103090.0,1.67123589]
[1746811239372,0.0002238,103100.0,103090.0,1.38195589]
[1746811239576,0.0002238,103100.0,103090.0,1.67095589]
[1746811239881,0.0002238,103100.0,103090.0,1.67295589]
[1746811239882,0.0710238,103100.0,103090.0,1.67295589]
[1746811240574,0.0710238,103100.0,103090.0,1.38395589]
[1746811240779,0.2647767,103100.0,103090.0,1.28853018]
[1746811240989,0.4136767,103100.0,103090.0,1.28853018]
[1746811241683,0.4136767,103100.0,103090.0,1.29053018]
[1746811241982,0.2197,103100.0,103090.0,1.29053018]
[1746811242182,0.4136767,103100.0,103090.0,1.29050384]
[1746811243783,0.4136767,103100.0,103090.0,1.29049794]
[1746811245379,0.42430411,103100.0,103090.0,1.29049794]
[1746811245778,0.2197,103100.0,103090.0,1.29049794]
[1746811245984,0.1449,103100.0,103090.0,1.45868365]
[1746811246181,0.0734,103110.0,103100.0,0.1939767]
[1746811246375,0.2735579,103110.0,103100.0,1.27076241]
[1746811246576,0.3489579,103110.0,103100.0,1.27076241]
[1746811246776,0.4183579,103110.0,103100.0,1.19957461]
[1746811248190,0.4183579,103110.0,103100.0,1.20057461]
[1746811248684,0.2244,103110.0,103100.0,1.20057461]
[1746811248984,0.4183579,103110.0,103100.0,1.20057461]
[1746811249282,0.4183579,103110.0,103100.0,1.12767461]
[1746811251487,0.58654361,103110.0,103100.0,1.0306767]
[1746811251685,0.58654361,103110.0,103100.0,0.9851767]
[1746811252884,0.4183579,103110.0,103100.0,0.9851767]
[1746811253081,0.58654361,103110.0,103100.0,0.9851767]
[1746811253787,0.4183579,103110.0,103100.0,0.9851767]
[1746811255886,0.58654361,103110.0,103100.0,0.9851767]
[1746811257091,0.4183579,103110.0,103100.0,0.9851767]
[1746811257481,0.58654361,103110.0,103100.0,0.9851767]
[1746811257784,0.58654361,103110.0,103100.0,1.0051767]
[1746811260691,0.58654361,103110.0,103100.0,0.6443767]
[1746811260990,0.83752932,103110.0,103100.0,0.0704]
[1746811261191,0.76633161,103110.0,103100.0,0.6243767]
[1746811262191,0.76633161,103110.0,103100.0,0.361]
[1746811262387,0.76733161,103110.0,103100.0,0.5549767]
[1746811262588,0.67034361,103110.0,103100.0,0.5549767]
[1746811262886,0.76733161,103110.0,103100.0,0.1949767]
[1746811263089,0.76733161,103110.0,103100.0,0.001]
[1746811263291,1.29631732,103110.0,103100.0,0.001]
[1746811263588,0.1939767,103100.0,103090.0,0.771171]
[1746811263890,0.72200241,103100.0,103090.0,1.121171]
[1746811264191,0.72200241,103100.0,103090.0,1.0726726]
[1746811264493,0.72200241,103100.0,103090.0,0.6256795]
[1746811264688,0.72200241,103100.0,103090.0,0.9656795]
[1746811264991,0.81899841,103100.0,103090.0,0.9666795]
[1746811265885,0.90179841,103100.0,103090.0,0.9666795]
[1746811266587,0.1939955,103090.0,103080.0,0.3608]
[1746811266787,0.93568121,103090.0,103080.0,0.3941]
[1746811267087,0.4066955,103090.0,103080.0,0.9489143]
[1746811267294,0.4066955,103090.0,103080.0,0.6582143]
[1746811267591,0.4066955,103090.0,103080.0,1.0190143]
[1746811267787,0.4066955,103090.0,103080.0,1.0980143]
[1746811267981,0.3372955,103090.0,103080.0,1.0980143]
[1746811268380,0.2688955,103090.0,103080.0,1.0950143]
[1746811268585,0.2698955,103090.0,103080.0,1.0930143]
[1746811269092,0.1949955,103090.0,103080.0,1.35820733]
[1746811269393,0.1949955,103090.0,103080.0,1.19002162]
[1746811269689,0.1949955,103090.0,103080.0,1.37287907]
[1746811269690,0.001,103090.0,103080.0,1.37287907]
[1746811269889,0.001,103090.0,103080.0,1.37287897]
[1746811270582,0.001,103090.0,103080.0,1.37387897]
[1746811270786,0.4222676,103100.0,103090.0,0.1939955]
[1746811270985,0.4222676,103100.0,103090.0,1.1015955]
[1746811271187,0.66265331,103100.0,103090.0,0.9076]
[1746811271386,0.73545331,103100.0,103090.0,1.0371955]
[1746811271594,0.80575331,103100.0,103090.0,1.0371955]
[1746811271788,0.80575331,103100.0,103090.0,0.8432]
[1746811272089,0.94643331,103100.0,103090.0,0.8432]
[1746811272299,0.7782476,103100.0,103090.0,1.0381955]
[1746811272599,1.04342931,103100.0,103090.0,0.7737]
[1746811273689,0.7792476,103100.0,103090.0,0.9666955]
[1746811273887,0.94743331,103100.0,103090.0,0.9666955]
[1746811274086,0.94843331,103100.0,103090.0,0.841]
[1746811274393,0.94843331,103100.0,103090.0,1.0349955]
[1746811274785,0.94843331,103100.0,103090.0,0.841]
[1746811276187,0.94843331,103100.0,103090.0,0.4327]
[1746811276393,0.94843331,103100.0,103090.0,0.7727]
[1746811276894,0.94843331,103100.0,103090.0,0.9666955]
[1746811277393,0.94843331,103100.0,103090.0,1.0381955]
[1746811277789,0.94843331,103100.0,103090.0,0.6981955]
[1746811277991,0.94843331,103100.0,103090.0,1.0481955]
[1746811278695,0.94843331,103100.0,103090.0,0.6873955]
[1746811280293,1.04542931,103100.0,103090.0,0.0719]
[1746811280888,1.32342931,103100.0,103090.0,0.0719]
[1746811281089,1.32342931,103100.0,103080.0,0.0734]
[1746811281090,0.1940143,103080.0,103070.0,0.37552069]
[1746811281290,0.67042572,103080.0,103070.0,0.69552069]
[1746811281488,0.67042572,103080.0,103070.0,0.44892069]
[1746811281489,0.71234001,103080.0,103070.0,0.44892069]
[1746811281797,0.80935601,103080.0,103070.0,0.7308]
[1746811283199,0.6411703,103080.0,103070.0,0.9248331]
[1746811283393,0.80935601,103080.0,103070.0,0.9949331]
[1746811283599,0.80935601,103080.0,103070.0,0.9999331]
[1746811284090,0.81035601,103080.0,103070.0,0.9969331]
[1746811284290,0.81135601,103080.0,103070.0,0.9949331]
[1746811284492,0.71434001,103080.0,103070.0,0.9949331]
[1746811284801,0.71434001,103080.0,103070.0,0.8009]
[1746811285098,0.71434001,103080.0,103070.0,0.9949331]
[1746811285703,0.71434001,103080.0,103070.0,0.4309]
[1746811286007,0.71434001,103080.0,103070.0,0.7509]
[1746811286201,0.71434001,103080.0,103070.0,0.8238]
[1746811286900,0.79714001,103080.0,103070.0,0.8238]
[1746811287093,0.79714001,103080.0,103070.0,1.0178331]
[1746811287293,0.79714001,103080.0,103070.0,0.6978331]
[1746811287594,0.79714001,103080.0,103070.0,1.0578331]
[1746811289197,0.79714001,103080.0,103070.0,0.6978331]
[1746811289400,0.79714001,103080.0,103070.0,1.0778331]
[1746811290601,0.79714001,103080.0,103070.0,0.6978331]
[1746811290801,0.79714001,103080.0,103070.0,1.0678331]
[1746811292701,0.79714001,103080.0,103070.0,0.8738]
[1746811293004,0.79714001,103080.0,103070.0,0.8538]
[1746811293398,0.79714001,103080.0,103070.0,1.0478331]
[1746811293806,0.79714001,103080.0,103070.0,0.8538]
[1746811294906,0.79714001,103080.0,103070.0,0.7837]
[1746811295207,0.79714001,103080.0,103070.0,0.4337]
[1746811295507,0.79714001,103080.0,103070.0,0.7837]
[1746811295707,0.79714001,103080.0,103070.0,0.855]
[1746811295906,0.79714001,103080.0,103070.0,1.0490331]
[1746811296103,1.24332572,103080.0,103070.0,0.0729]
[1746811296312,0.194052,103060.0,103050.0,0.5072]
[1746811296601,0.64271771,103060.0,103050.0,1.0412708]
[1746811296800,0.85251771,103060.0,103050.0,1.0312708]
[1746811297001,0.684332,103060.0,103050.0,1.0312708]
[1746811297202,0.684332,103060.0,103050.0,1.1000708]
[1746811297397,0.85251771,103060.0,103050.0,0.7720708]
[1746811297607,0.85251771,103060.0,103050.0,1.1120708]
[1746811297806,0.86301352,103060.0,103050.0,1.1120708]
[1746811298010,0.86301352,103060.0,103050.0,1.1150708]
[1746811299000,0.2910409,103080.0,103070.0,0.1940331]
[1746811299301,0.94848661,103080.0,103070.0,0.7408]
[1746811299502,0.94848661,103080.0,103070.0,0.9546]
[1746811299700,0.95867833,103080.0,103070.0,0.9546]
[1746811299912,0.95867833,103080.0,103070.0,0.5746]
[1746811300110,0.95967833,103080.0,103070.0,0.8519]
[1746811300303,1.32147833,103080.0,103070.0,0.4911]
[1746811301212,0.96067833,103080.0,103070.0,0.4911]
[1746811301403,0.89137833,103080.0,103070.0,0.5609]
[1746811301604,0.58395262,103080.0,103070.0,1.1157331]
[1746811301802,0.75213833,103080.0,103070.0,1.1157331]
[1746811302107,0.48698172,103080.0,103070.0,1.1157331]
[1746811302504,0.34622172,103080.0,103070.0,1.1157331]
[1746811302904,0.34622172,103080.0,103070.0,1.38093554]
[1746811302905,0.01219172,103080.0,103070.0,1.38093554]
[1746811303108,0.20962602,103080.0,103070.0,1.39560545]
[1746811303308,0.20862602,103080.0,103070.0,1.39560545]
[1746811303509,0.20862602,103080.0,103070.0,1.41018442]
[1746811303709,0.20862602,103080.0,103070.0,1.24199871]
[1746811304007,0.01361172,103080.0,103070.0,1.24299871]
[1746811304210,0.20762602,103080.0,103070.0,1.24299901]
[1746811305922,0.01361172,103080.0,103070.0,1.24299901]
[1746811306114,0.20762602,103080.0,103070.0,1.24299901]
[1746811306310,0.00342,103080.0,103070.0,1.41118472]
[1746811307714,0.00342,103080.0,103070.0,1.41118782]
[1746811308310,0.00342,103080.0,103070.0,1.50820382]
[1746811309511,0.00342,103080.0,103070.0,1.51020382]
[1746811309915,0.00342,103080.0,103070.0,1.34201811]
[1746811310109,0.00342,103080.0,103070.0,1.51020382]
[1746811310716,0.00342,103080.0,103070.0,1.41318782]
[1746811310912,0.00342,103080.0,103070.0,1.41418782]
[1746811312316,0.08825598,103110.0,103100.0,0.1939767]
[1746811312513,0.19941388,103110.0,103100.0,1.03296241]
[1746811312812,0.004,103110.0,103100.0,1.24846241]
[1746811313020,0.004,103110.0,103100.0,1.36012645]
[1746811313213,0.004,103110.0,103100.0,1.36011662]
[1746811314115,0.004,103110.0,103100.0,1.36111662]
[1746811314712,0.004,103110.0,103100.0,1.20410671]
[1746811315117,0.004,103110.0,103100.0,1.19393091]
[1746811315316,0.1979579,103110.0,103100.0,1.33921091]
[1746811315919,0.1979579,103110.0,103100.0,1.34021091]
[1746811316218,0.1979579,103110.0,103100.0,1.32557343]
[1746811317719,0.2700579,103110.0,103100.0,1.32557343]
[1746811318619,0.3430579,103110.0,103100.0,1.32557343]
[1746811318820,0.51124361,103110.0,103100.0,1.0627767]
[1746811319326,0.3430579,103110.0,103100.0,1.0627767]
[1746811319724,0.51124361,103110.0,103100.0,1.0627767]
[1746811319924,0.51124361,103110.0,103100.0,0.9916767]
[1746811320616,0.51124361,103110.0,103100.0,0.2708767]
[1746811320817,1.04022932,103110.0,103100.0,0.2708767]
[1746811321220,0.87204361,103110.0,103100.0,0.6208767]
[1746811321419,0.87204361,103110.0,103100.0,0.353]
[1746811321617,1.26990932,103110.0,103100.0,0.003]
[1746811321823,1.41514932,103110.0,103100.0,0.1959767]
[1746811322623,1.41514932,103110.0,103100.0,0.5759767]
[1746811322819,0.88616361,103110.0,103100.0,0.9367767]
[1746811323019,0.88616361,103110.0,103100.0,1.0073767]
[1746811323221,0.88616361,103110.0,103100.0,0.6273767]
[1746811323427,0.88616361,103110.0,103100.0,0.6465767]
[1746811323631,0.88616361,103110.0,103100.0,1.0063767]
[1746811323834,0.88616361,103110.0,103100.0,0.6263767]
[1746811324037,0.88816361,103110.0,103100.0,0.9763767]
[1746811324224,0.88816361,103110.0,103100.0,0.6155767]
[1746811324425,0.88816361,103110.0,103100.0,0.2655767]
[1746811324624,0.88816361,103110.0,103100.0,0.6455767]
[1746811324932,0.88816361,103110.0,103100.0,0.5739767]
[1746811325322,0.88816361,103110.0,103100.0,0.6436767]
[1746811325832,0.1939767,103100.0,103090.0,0.6517726]
[1746811326025,0.50146241,103100.0,103090.0,0.9917726]
[1746811326225,0.57116241,103100.0,103090.0,1.0614726]
[1746811326528,0.57116241,103100.0,103090.0,1.1333726]
[1746811326733,0.4029767,103100.0,103090.0,1.1333726]
[1746811327324,0.4029767,103100.0,103090.0,1.1343726]
[1746811327525,0.209,103100.0,103090.0,1.1343726]
[1746811327730,0.4029767,103100.0,103090.0,1.2028726]
[1746811328131,0.4029767,103100.0,103090.0,1.21751173]
[1746811329330,0.209,103100.0,103090.0,1.38569744]
[1746811329521,0.004,103110.0,103100.0,0.1939767]
[1746811329727,0.004,103110.0,103100.0,1.18116241]
[1746811329937,0.004,103110.0,103100.0,1.0129767]
[1746811330237,0.1979579,103110.0,103100.0,1.10997461]
[1746811330534,0.3364579,103110.0,103100.0,1.10997461]
[1746811330929,0.3364579,103110.0,103100.0,1.11197461]
[1746811331235,0.3364579,103110.0,103100.0,1.12862181]
[1746811331537,0.3364579,103110.0,103100.0,1.12762181]
[1746811332026,0.3364579,103110.0,103100.0,1.11297461]
[1746811332229,0.3364579,103110.0,103100.0,1.12762192]
[1746811332634,0.3364579,103110.0,103100.0,1.12562192]
[1746811333335,0.3364579,103110.0,103100.0,1.12562894]
[1746811334130,0.0737,103110.0,103100.0,1.29381465]
[1746811334433,0.2676579,103110.0,103100.0,1.29381465]
[1746811335735,0.2676579,103110.0,103100.0,1.29381905]
[1746811336130,0.0737,103110.0,103100.0,1.29381905]
[1746811336335,0.004,103110.0,103100.0,1.29381905]
[1746811336633,0.01127,103110.0,103100.0,1.29381905]
[1746811337036,0.2052279,103110.0,103100.0,1.12563334]
[1746811337532,0.2729279,103110.0,103100.0,1.12663334]
[1746811337736,0.3462279,103110.0,103100.0,1.12663334]
[1746811338640,0.3462279,103110.0,103100.0,1.12863334]
[1746811339240,0.3462279,103110.0,103100.0,1.12863864]
[1746811342837,0.3462279,103110.0,103100.0,1.11397461]
[1746811343042,0.3462279,103110.0,103100.0,1.12864046]
[1746811343246,0.07897,103110.0,103100.0,1.12864046]
[1746811343435,0.2052279,103110.0,103100.0,1.12864046]
[1746811343629,0.01127,103110.0,103100.0,1.12864046]
[1746811343936,0.01127,103110.0,103100.0,1.29682617]
[1746811347142,0.2052279,103110.0,103100.0,1.29682617]
[1746811347343,0.1940143,103080.0,103070.0,0.76592542]
[1746811347535,0.72300001,103080.0,103070.0,0.35744207]
[1746811347741,1.55916742,103080.0,103020.0,1.24673567]
[1746811347940,0.1941083,103040.0,103030.0,0.4342]
[1746811348139,0.29868,103050.0,103040.0,0.1940896]
[1746811348346,0.2661708,103050.0,103040.0,1.0592896]
[1746811348548,0.44862634,103050.0,103040.0,0.5052]
[1746811348740,0.44862634,103050.0,103040.0,0.4318]
[1746811348934,0.79515651,103050.0,103040.0,0.071]
[1746811349140,0.69958622,103050.0,103040.0,0.071]
[1746811349348,0.1941085,103030.0,103020.0,0.82558071]
[1746811349548,0.1941085,103030.0,103010.0,1.02467547]
[1746811349549,0.1941273,103020.0,103010.0,1.02467547]
[1746811349847,0.1942027,102980.0,102970.0,0.23603461]
[1746811350245,0.5550027,102980.0,102970.0,0.38053461]
[1746811350446,0.45950041,102980.0,102960.0,0.3608]
[1746811350641,0.16168,102990.0,102970.0,0.6746655]
[1746811350946,0.0693,103000.0,102980.0,0.4804471]
[1746811351147,0.16818571,103010.0,103000.0,0.1941543]
[1746811351348,0.1941461,103010.0,103000.0,0.626065]
[1746811351540,0.36233181,103010.0,103000.0,0.08561514]
[1746811351739,0.5741461,103010.0,103000.0,0.08561514]
[1746811351946,0.2133461,103010.0,103000.0,0.64058014]
[1746811352147,0.31162119,103020.0,103010.0,0.1941461]
[1746811352148,0.00145839,103020.0,103010.0,0.1941461]
[1746811352340,0.2168006,103050.0,103030.0,0.0485246]
[1746811352341,0.1980777,103050.0,103030.0,0.0485246]
[1746811352648,0.0970577,103030.0,103010.0,0.73100123]
[1746811352848,0.2911662,103030.0,103020.0,0.0714]
[1746811353153,0.2426356,103030.0,103020.0,0.91656999]
[1746811353442,0.46368604,103030.0,103020.0,0.0674]
[1746811353643,0.82448604,103030.0,103020.0,0.1364]
[1746811353847,0.194165,103000.0,102990.0,0.6220802]
[1746811354055,0.194165,103000.0,102990.0,1.82120023]
[1746811354343,0.41521544,103000.0,102990.0,1.82120023]
[1746811354550,0.41521544,103000.0,102990.0,1.8356461]
[1746811354739,0.194165,103000.0,102990.0,0.9302059]
[1746811354945,0.262565,103000.0,102990.0,1.11294393]
[1746811355441,0.0041,103010.0,103000.0,0.194165]
[1746811355740,0.4162897,103030.0,103020.0,0.1941273]
[1746811356050,0.4846897,103030.0,103020.0,0.5549273]
[1746811356245,0.002,103030.0,103020.0,1.2190873]
[1746811356546,0.002,103030.0,103020.0,1.58992003]
[1746811356547,0.41515894,103030.0,103020.0,1.58992003]
[1746811356849,0.1941085,103030.0,103020.0,1.85364733]
[1746811357050,0.1941085,103030.0,103020.0,1.62918733]
[1746811357252,0.41615894,103030.0,103020.0,0.69426003]
[1746811357549,0.1941461,103010.0,103000.0,0.7273583]
[1746811357754,0.1941461,103010.0,103000.0,1.18577833]
[1746811358049,0.29181755,103010.0,103000.0,1.39715345]
[1746811358241,0.29181755,103010.0,103000.0,1.03615345]
[1746811358639,0.29181755,103010.0,103000.0,1.35615345]
[1746811358851,0.09767145,103010.0,103000.0,1.57720389]
[1746811359053,0.09767145,103010.0,103000.0,1.67528655]
[1746811359245,0.29181755,103010.0,103000.0,1.45423611]
[1746811359449,0.09767145,103010.0,103000.0,1.35715345]
[1746811359647,0.29181755,103010.0,103000.0,1.35815345]
[1746811360049,0.09767145,103010.0,103000.0,1.35815345]
[1746811360246,0.29181755,103010.0,103000.0,1.35815345]
[1746811360446,0.1941461,103010.0,103000.0,1.35815345]
[1746811360647,0.4325065,103020.0,103010.0,0.1941461]
[1746811360843,0.4325065,103020.0,103010.0,0.89420613]
[1746811361043,0.4325065,103020.0,103010.0,0.70006003]
[1746811361249,0.4325065,103020.0,103010.0,0.89420613]
[1746811362154,0.4335065,103020.0,103010.0,0.89420613]
[1746811362846,0.3603079,103020.0,103010.0,0.38830613]
[1746811363050,0.3644079,103020.0,103010.0,0.38830613]
[1746811363456,0.3644079,103020.0,103010.0,0.68246613]
[1746811364351,0.2288039,103020.0,102990.0,0.3608]
[1746811364547,0.1942027,102980.0,102970.0,0.71535712]
[1746811364747,0.1942216,102970.0,102960.0,0.55901013]
[1746811364947,0.1942216,102970.0,102960.0,1.42224885]
[1746811365150,0.3542216,102970.0,102960.0,1.42224885]
[1746811365347,0.16,102970.0,102960.0,1.42224885]
[1746811365752,0.3542216,102970.0,102960.0,1.42224885]
[1746811365953,0.3542216,102970.0,102960.0,1.55894885]
[1746811366350,0.3542216,102970.0,102960.0,1.56694885]
[1746811366548,0.16,102970.0,102960.0,1.66406923]
[1746811366748,0.16,102970.0,102960.0,1.89311967]
[1746811367152,0.16,102970.0,102960.0,2.00501415]
[1746811367348,0.7205613,103000.0,102990.0,0.1941839]
[1746811367552,0.7297613,103000.0,102990.0,0.38834393]
[1746811367754,0.37,103000.0,102990.0,1.0445839]
[1746811367949,0.19560352,103010.0,103000.0,0.194165]
[1746811368144,0.68640352,103010.0,103000.0,0.62792003]
[1746811368451,0.62410352,103010.0,103000.0,0.333765]
[1746811368660,0.98490352,103010.0,103000.0,0.82208503]
[1746811369158,0.79075742,103010.0,103000.0,0.82308503]
[1746811369451,0.01145742,103010.0,103000.0,1.50388503]
[1746811369657,0.00145742,103010.0,103000.0,1.72493547]
[1746811369858,0.00145742,103010.0,103000.0,1.50388503]
[1746811370058,0.00145742,103010.0,103000.0,1.82301813]
[1746811370451,0.00145742,103010.0,103000.0,1.89231813]
[1746811371154,0.00145742,103010.0,103000.0,1.67126769]
[1746811371355,0.19560352,103010.0,103000.0,1.57418503]
[1746811372458,0.29315206,103010.0,103000.0,1.57418503]
[1746811372857,0.09900596,103010.0,103000.0,1.57418503]
[1746811373251,0.09900596,103010.0,103000.0,1.67126769]
[1746811373457,0.09900596,103010.0,103000.0,1.89231813]
[1746811374565,0.29315206,103010.0,103000.0,1.89231813]
[1746811374765,0.29315206,103010.0,103000.0,1.67126769]
[1746811374968,0.09900596,103010.0,103000.0,1.67126769]
[1746811375666,0.16352327,103010.0,103000.0,1.67126769]
[1746811375964,0.16352327,103010.0,103000.0,1.42357442]
[1746811377168,0.16352327,103010.0,103000.0,1.64462486]
[1746811377353,0.00145742,103010.0,103000.0,1.64462486]
[1746811378559,0.00145742,103010.0,103000.0,1.42357442]
[1746811379464,0.00145742,103010.0,103000.0,1.57017442]
[1746811379668,0.00245742,103010.0,103000.0,1.56817442]
[1746811380670,0.00245742,103010.0,103000.0,1.56917442]
[1746811381170,0.21409269,103010.0,103000.0,1.42056159]
[1746811381369,0.21409269,103010.0,103000.0,1.61472659]
[1746811381766,0.21309269,103010.0,103000.0,1.83577703]
[1746811381966,0.21309269,103010.0,103000.0,1.83677703]
[1746811382364,0.21163527,103010.0,103000.0,1.83677703]
[1746811382876,0.09943527,103010.0,103000.0,2.00993703]
[1746811383265,0.09943527,103010.0,103000.0,3.50993703]
[1746811383464,0.16792264,103010.0,103000.0,3.28888659]
[1746811383669,0.16792264,103010.0,103000.0,2.07247813]
[1746811384176,0.16792264,103010.0,103000.0,3.57247813]
[1746811384366,0.36206874,103010.0,103000.0,3.17826769]
[1746811384566,0.16792264,103010.0,103000.0,3.17826769]
[1746811384779,0.23772264,103010.0,103000.0,1.67826769]
[1746811384973,0.43186874,103010.0,103000.0,1.67826769]
[1746811386068,0.30407628,103010.0,103000.0,1.67826769]
[1746811387370,0.04013018,103010.0,103000.0,1.89931813]
[1746811387572,0.04013018,103010.0,103000.0,2.12036857]
[1746811387971,0.04013018,103010.0,103000.0,1.89931813]
[1746811388167,0.04013018,103010.0,103000.0,2.12036857]
[1746811388876,0.22201716,103020.0,103010.0,0.1941461]
[1746811389174,0.18357576,103020.0,103010.0,2.13327657]
[1746811389370,0.09529886,103020.0,103010.0,1.91222613]
[1746811389574,0.09529886,103020.0,103010.0,2.23034981]
[1746811389778,0.09529886,103020.0,103010.0,2.32742181]
[1746811390278,0.09529886,103020.0,103010.0,2.32842181]
[1746811390473,0.09629886,103020.0,103010.0,2.10737137]
[1746811390679,0.09629886,103020.0,103010.0,2.32842181]
[1746811391278,0.09529886,103020.0,103010.0,2.32942181]
[1746811391878,0.09529886,103020.0,103010.0,3.82942181]
[1746811392572,0.00311326,103020.0,103010.0,3.82942181]
[1746811392773,0.30400232,103030.0,103020.0,0.68244733]
[1746811392978,0.04766542,103030.0,103020.0,1.92716177]
[1746811393181,0.20264737,103050.0,103040.0,0.1940896]
[1746811393377,0.20264737,103050.0,103040.0,2.67639051]
[1746811393577,0.15994687,103050.0,103040.0,2.7734345]
[1746811393882,0.15994687,103050.0,103040.0,4.16433998]
[1746811394072,0.15994687,103050.0,103040.0,4.38539042]
[1746811394471,0.00842627,103050.0,103040.0,4.19130082]
[1746811394671,0.00727007,103050.0,103040.0,4.38536574]
[1746811394887,0.00727007,103050.0,103040.0,4.38736574]
[1746811395183,0.00727007,103050.0,103040.0,4.40190686]
[1746811395378,0.00727007,103050.0,103040.0,4.22754425]
[1746811395584,0.00727007,103050.0,103040.0,4.18261381]
[1746811396376,0.00727,103050.0,103040.0,4.08556982]
[1746811396685,0.00727,103050.0,103040.0,4.08516982]
[1746811397680,0.00727,103050.0,103040.0,4.08517328]
[1746811398387,0.00727,103050.0,103040.0,4.40326771]
[1746811398887,5e-08,103060.0,103050.0,0.68239083]
[1746811399075,5e-08,103060.0,103050.0,1.79680955]
[1746811399276,0.05585942,103070.0,103060.0,0.38821203]
[1746811399480,0.19515608,103080.0,103070.0,0.1940331]
[1746811399481,0.0230591,103080.0,103070.0,0.1940331]
[1746811399684,0.1475473,103090.0,103080.0,0.1940143]
[1746811399892,0.1475473,103090.0,103080.0,2.13355305]
[1746811400185,0.1475473,103090.0,103080.0,3.63355305]
[1746811400385,0.1475473,103090.0,103080.0,3.73056105]
[1746811400589,0.1475473,103090.0,103080.0,2.39846837]
[1746811401191,0.1475473,103090.0,103080.0,3.89846837]
[1746811401394,0.1475473,103090.0,103080.0,3.90046837]
[1746811401591,0.1475473,103090.0,103080.0,3.90041317]
[1746811401983,0.1475473,103090.0,103080.0,3.91060155]
[1746811402297,0.1164294,103090.0,103080.0,4.13365199]
[1746811403382,0.40804269,103110.0,103100.0,0.1939767]
[1746811403682,0.40814269,103110.0,103100.0,2.14814717]
[1746811403881,0.40814269,103110.0,103100.0,2.46052717]
[1746811404081,0.40814269,103110.0,103100.0,2.38405449]
[1746811404285,0.40814269,103110.0,103100.0,2.55749449]
[1746811404492,0.40914269,103110.0,103100.0,2.33644405]
[1746811404691,0.40914269,103110.0,103100.0,2.55749449]
[1746811404889,0.0776,103110.0,103100.0,2.55749449]
[1746811405094,0.0776,103110.0,103100.0,2.55849449]
[1746811405395,0.0776,103110.0,103100.0,2.21185449]
[1746811405596,0.1483,103110.0,103100.0,2.38505449]
[1746811406796,0.1483,103110.0,103100.0,2.39981535]
[1746811407196,0.3422579,103110.0,103100.0,2.39981535]
[1746811407694,0.3422579,103110.0,103100.0,1.62314488]
[1746811407895,0.4092579,103110.0,103100.0,1.62314488]
[1746811409289,0.4092579,103110.0,103100.0,1.55154488]
[1746811409597,0.4092579,103110.0,103100.0,1.09373756]
[1746811410187,0.7700579,103110.0,103100.0,0.18896086]